bitfinex-derivatives/quotes_BNBF0:USTF0_20230831
["timestamp","ask_amount","ask_price","bid_price","bid_amount"]
[1693524850557,0.15105441,216.23,215.52,0.1700654]
[1693524850857,0.15105441,216.23,215.53,0.1700654]
[1693524851054,0.15105441,216.23,215.42,5.0548601]
[1693524851055,0.15105441,216.23,215.54,0.1700654]
[1693524851256,0.15105441,216.23,215.43,0.1700654]
[1693524851557,0.15105441,216.23,215.44,0.1700654]
[1693524851757,0.15105441,216.23,215.45,0.1700654]
[1693524851954,0.15105441,216.23,215.46,0.1700654]
[1693524852156,0.15105441,216.23,215.47,0.1700654]
[1693524852356,0.15105441,216.23,215.48,0.1700654]
[1693524852556,0.15105441,216.23,215.49,0.1700654]
[1693524852757,0.15105441,216.23,215.5,0.1700654]
[1693524852951,0.15105441,216.23,215.51,0.1700654]
[1693524853155,0.15105441,216.23,215.52,0.1700654]
[1693524853351,0.15105441,216.23,215.53,0.1700654]
[1693524853557,0.15105441,216.23,215.54,0.1700654]
[1693524853757,0.15105441,216.23,215.55,0.1700654]
[1693524853952,0.15105441,216.23,215.56,0.1700654]
[1693524854153,0.15105441,216.23,215.57,0.1700654]
[1693524854356,0.15105441,216.23,215.58,0.1700654]
[1693524854559,0.15105441,216.23,215.59,0.1700654]
[1693524854854,0.15105441,216.23,215.6,0.1700654]
[1693524855053,0.15105441,216.23,215.61,0.1700654]
[1693524855253,0.15105441,216.23,215.62,0.1700654]
[1693524855454,0.15105441,216.23,215.63,0.1700654]
[1693524855658,0.15105441,216.23,215.64,0.1700654]
[1693524855859,0.15105441,216.23,215.65,0.1700654]
[1693524856061,0.15105441,216.23,215.66,0.1700654]
[1693524856260,0.15105441,216.23,215.67,0.1700654]
[1693524856460,0.15105441,216.22,215.68,0.1700654]
[1693524856759,0.15105441,216.22,215.69,0.1700654]
[1693524856955,0.15105441,216.22,215.7,0.1700654]
[1693524857154,0.15105441,216.22,215.71,0.1700654]
[1693524857359,0.15105441,216.22,215.44,0.1700654]
[1693524857557,0.15105441,216.22,215.45,0.1700654]
[1693524857758,0.15105441,216.22,215.46,0.1700654]
[1693524857956,0.15105441,216.22,215.47,0.1700654]
[1693524858156,0.15105441,216.22,215.48,0.1700654]
[1693524858359,0.15105441,216.22,215.49,0.1700654]
[1693524858661,0.15105441,216.22,215.5,0.1700654]
[1693524858862,0.15105441,216.22,215.44,0.1700654]
[1693524859068,0.15105441,216.22,215.45,0.1700654]
[1693524859262,0.15105441,216.22,215.46,0.1700654]
[1693524859460,0.15105441,216.22,215.47,0.1700654]
[1693524859660,0.15105441,216.22,215.48,0.1700654]
[1693524859862,0.15105441,216.22,215.49,0.1700654]
[1693524860060,0.15105441,216.22,215.5,0.1700654]
[1693524860259,0.15105441,216.22,215.51,0.1700654]
[1693524860459,0.15105441,216.23,215.44,0.1700654]
[1693524860659,0.15105441,216.22,215.45,0.1700654]
[1693524860862,0.15105441,216.22,215.44,0.1700654]
[1693524861063,0.15105441,216.22,215.45,0.1700654]
[1693524861257,0.15105441,216.22,215.46,0.1700654]
[1693524861459,0.15105441,216.22,215.44,0.1700654]
[1693524861662,0.15105441,216.22,215.45,0.1700654]
[1693524861861,0.15105441,216.22,215.44,0.1700654]
[1693524862060,0.15105441,216.22,215.45,0.1700654]
[1693524862264,0.15105441,216.22,215.46,0.1700654]
[1693524862464,0.15105441,216.22,215.47,0.1700654]
[1693524862663,0.15105441,216.22,215.44,0.1700654]
[1693524866066,0.15105441,216.23,215.44,0.1700654]
[1693524866972,0.15105441,216.23,215.44,5.2249255]
[1693524867270,0.15105441,216.23,215.45,0.1700654]
[1693524867668,0.15105441,216.24,215.45,0.1700654]
[1693524867865,0.15105441,216.23,215.45,0.1700654]
[1693524868466,0.50351472,216.26,215.45,0.1700654]
[1693524868467,0.15105441,216.24,215.45,0.1700654]
[1693524873874,0.50351472,216.27,215.45,0.1700654]
[1693524873875,0.15105441,216.25,215.45,0.1700654]
[1693524877978,0.15105441,216.25,215.44,0.1700654]
[1693524878272,0.15105441,216.25,215.45,0.1700654]
[1693524878477,0.15105441,216.25,215.46,0.1700654]
[1693524878679,0.15105441,216.25,215.44,0.1700654]
[1693524878877,0.15105441,216.25,215.45,0.1700654]
[1693524879073,0.15105441,216.25,215.46,0.1700654]
[1693524879276,0.15105441,216.25,215.47,0.1700654]
[1693524879476,0.15105441,216.25,215.44,0.1700654]
[1693524879676,0.15105441,216.25,215.45,0.1700654]
[1693524879877,0.15105441,216.25,215.46,0.1700654]
[1693524880080,0.15105441,216.25,215.47,0.1700654]
[1693524880283,0.15105441,216.25,215.44,0.1700654]
[1693524880485,0.15105441,216.25,215.45,0.1700654]
[1693524880680,0.15105441,216.25,215.46,0.1700654]
[1693524880881,0.15105441,216.25,215.47,0.1700654]
[1693524881078,0.15105441,216.25,215.44,0.1700654]
[1693524881277,0.15105441,216.25,215.45,0.1700654]
[1693524881481,0.15105441,216.25,215.46,0.1700654]
[1693524881673,0.15105441,216.25,215.47,0.1700654]
[1693524881879,0.15105441,216.25,215.48,0.1700654]
[1693524882176,0.15105441,216.25,215.49,0.1700654]
[1693524882381,0.15105441,216.26,215.5,0.1700654]
[1693524882581,0.15105441,216.26,215.51,0.1700654]
[1693524882781,0.15105441,216.26,215.44,0.1700654]
[1693524882982,0.15105441,216.26,215.45,0.1700654]
[1693524883178,0.15105441,216.26,215.44,0.1700654]
[1693524883375,0.15105441,216.26,215.45,0.1700654]
[1693524883578,0.15105441,216.27,215.45,0.1700654]
[1693524890783,0.15105441,216.26,215.45,0.1700654]
[1693524890982,0.15105441,216.26,215.44,0.1700654]
[1693524891186,0.15105441,216.26,215.45,0.1700654]
[1693524891488,0.15105441,216.26,215.46,0.1700654]
[1693524891687,0.15105441,216.26,215.47,0.1700654]
[1693524891889,0.15105441,216.26,215.48,0.1700654]
[1693524892089,0.15105441,216.26,215.49,0.1700654]
[1693524892289,0.15105441,216.27,215.5,0.1700654]
[1693524892490,0.15105441,216.26,215.51,0.1700654]
[1693524892684,0.15105441,216.26,215.35,7.0768041]
[1693524892685,0.15105441,216.26,215.44,5.2249255]
[1693524892890,0.15105441,216.26,215.45,0.1700654]
[1693524893586,0.50351472,216.29,215.45,0.1700654]
[1693524893587,0.15105441,216.27,215.45,0.1700654]
[1693524894589,0.15105441,216.26,215.45,0.1700654]
[1693524895189,0.07550772,216.24,215.45,0.1700654]
[1693524895595,0.07550772,216.36,215.45,0.1700654]
[1693524896294,0.07550772,216.36,215.5,5.0548601]
[1693524896489,0.07550772,216.37,215.51,0.1700654]
[1693524897591,0.07550772,216.38,215.51,0.1700654]
[1693524897989,0.07550772,216.38,215.52,0.1700654]
[1693524898190,0.07550772,216.38,215.48,0.1700654]
[1693524898396,0.07550772,216.38,215.49,0.1700654]
[1693524898590,0.07550772,216.38,215.5,0.1700654]
[1693524898790,0.07550772,216.38,215.51,0.1700654]
[1693524898992,0.07550772,216.38,215.52,0.1700654]
[1693524899192,0.07550772,216.38,215.48,0.1700654]
[1693524899393,0.07550772,216.38,215.49,0.1700654]
[1693524899595,0.07550772,216.39,215.47,0.1700654]
[1693524899795,0.07550772,216.39,215.48,0.1700654]
[1693524900096,0.07550772,216.39,215.49,0.1700654]
[1693524900297,0.07550772,216.39,215.5,0.1700654]
[1693524900500,0.07550772,216.39,215.46,0.1700654]
[1693524900697,0.07550772,216.39,215.47,0.1700654]
[1693524900997,0.07550772,216.39,215.48,0.1700654]
[1693524901198,0.07550772,216.39,215.46,0.1700654]
[1693524901391,0.07550772,216.39,215.47,0.1700654]
[1693524901590,0.07550772,216.39,215.48,0.1700654]
[1693524901795,0.07550772,216.39,215.49,0.1700654]
[1693524901997,0.07550772,216.39,215.5,0.1700654]
[1693524902193,0.07550772,216.39,215.36,7.0768041]
[1693524902194,0.07550772,216.39,215.51,0.1700654]
[1693524902397,0.07550772,216.39,215.44,5.0548601]
[1693524902398,0.07550772,216.39,215.52,0.1700654]
[1693524902592,0.07550772,216.39,215.53,0.1700654]
[1693524902897,0.07550772,216.39,215.54,0.1700654]
[1693524903099,0.07550772,216.39,215.55,0.1700654]
[1693524903399,0.07550772,216.39,215.56,0.1700654]
[1693524903700,0.07550772,216.39,215.57,0.1700654]
[1693524903999,0.07550772,216.39,215.58,0.1700654]
[1693524904192,0.07550772,216.39,215.59,0.1700654]
[1693524904397,0.07550772,216.39,215.6,0.1700654]
[1693524904594,0.07550772,216.39,215.61,0.1700654]
[1693524904796,0.07550772,216.39,215.62,0.1700654]
[1693524904997,0.07550772,216.39,215.63,0.1700654]
[1693524905195,0.07550772,216.39,215.64,0.1700654]
[1693524905397,0.07550772,216.39,215.43,0.1700654]
[1693524905594,0.07550772,216.39,215.44,0.1700654]
[1693524905795,0.07550772,216.39,215.43,0.1700654]
[1693524905998,0.07550772,216.39,215.44,0.1700654]
[1693524906200,0.07550772,216.39,215.45,0.1700654]
[1693524906398,0.07550772,216.39,215.46,0.1700654]
[1693524906599,0.07550772,216.39,215.47,0.1700654]
[1693524906799,0.07550772,216.39,215.48,0.1700654]
[1693524906996,0.07550772,216.39,215.49,0.1700654]
[1693524907199,0.07550772,216.39,215.5,0.1700654]
[1693524907399,0.07550772,216.39,215.51,0.1700654]
[1693524907602,0.07550772,216.39,215.52,0.1700654]
[1693524907796,0.07550772,216.39,215.53,0.1700654]
[1693524907998,0.07550772,216.39,215.54,0.1700654]
[1693524908196,0.07550772,216.39,215.55,0.1700654]
[1693524908498,0.07550772,216.39,215.56,0.1700654]
[1693524908702,0.07550772,216.39,215.4,5.0548601]
[1693524908703,0.07550772,216.39,215.57,0.1700654]
[1693524908901,0.07550772,216.39,215.58,0.1700654]
[1693524909104,0.07550772,216.39,215.59,0.1700654]
[1693524909403,0.07550772,216.39,215.6,0.1700654]
[1693524909702,0.07550772,216.39,215.61,0.1700654]
[1693524909902,0.07550772,216.39,215.62,0.1700654]
[1693524910101,0.07550772,216.39,215.4,0.1700654]
[1693524910302,0.07550772,216.39,215.41,0.1700654]
[1693524910603,0.07550772,216.39,215.42,0.1700654]
[1693524910797,0.07550772,216.39,215.43,0.1700654]
[1693524911002,0.07550772,216.39,215.44,0.1700654]
[1693524911200,0.07550772,216.39,215.45,0.1700654]
[1693524911400,0.07550772,216.39,215.46,0.1700654]
[1693524911602,0.07550772,216.39,215.47,0.1700654]
[1693524911803,0.07550772,216.39,215.4,0.1700654]
[1693524912003,0.07550772,216.39,215.41,0.1700654]
[1693524912203,0.07550772,216.39,215.4,0.1700654]
[1693524912404,0.07550772,216.39,215.41,0.1700654]
[1693524912704,0.07550772,216.39,215.39,5.0548601]
[1693524912705,0.07550772,216.39,215.42,0.1700654]
[1693524912903,0.07550772,216.39,215.39,0.1700654]
[1693524913202,0.07550772,216.39,215.4,0.1700654]
[1693524913397,0.07550772,216.39,215.39,0.1700654]
[1693524913603,0.07550772,216.39,215.4,0.1700654]
[1693524913798,0.07550772,216.39,215.41,0.1700654]
[1693524913997,0.07550772,216.39,215.42,0.1700654]
[1693524914199,0.07550772,216.39,215.43,0.1700654]
[1693524914402,0.07550772,216.38,215.44,0.1700654]
[1693524914603,0.07550772,216.38,215.45,0.1700654]
[1693524914804,0.07550772,216.38,215.46,0.1700654]
[1693524915000,0.07550772,216.38,215.47,0.1700654]
[1693524915207,0.07550772,216.38,215.48,0.1700654]
[1693524915403,0.07550772,216.38,215.49,0.1700654]
[1693524915705,0.07550772,216.38,215.5,0.1700654]
[1693524916004,0.07550772,216.38,215.51,0.1700654]
[1693524916210,0.07550772,216.37,215.39,0.1700654]
[1693524916404,0.07550772,216.37,215.4,0.1700654]
[1693524916598,0.07550772,216.37,215.37,5.0548601]
[1693524916599,0.07550772,216.37,215.41,0.1700654]
[1693524916798,0.07550772,216.37,215.42,0.1700654]
[1693524917000,0.07550772,216.36,215.43,0.1700654]
[1693524917305,0.07550772,216.36,215.44,0.1700654]
[1693524917503,0.07550772,216.36,215.45,0.1700654]
[1693524917705,0.07550772,216.36,215.46,0.1700654]
[1693524918005,0.07550772,216.36,215.47,0.1700654]
[1693524918201,0.07550772,216.36,215.48,0.1700654]
[1693524918405,0.07550772,216.36,215.49,0.1700654]
[1693524918601,0.07550772,216.36,215.5,0.1700654]
[1693524918801,0.07550772,216.36,215.51,0.1700654]
[1693524919006,0.07550772,216.36,215.52,0.1700654]
[1693524919206,0.07550772,216.35,215.53,0.1700654]
[1693524919406,0.07550772,216.35,215.39,0.1700654]
[1693524919607,0.07550772,216.35,215.4,0.1700654]
[1693524919806,0.07550772,216.35,215.41,0.1700654]
[1693524920109,0.07550772,216.35,215.42,0.1700654]
[1693524920405,0.07550772,216.35,215.43,0.1700654]
[1693524920607,0.07550772,216.35,215.44,0.1700654]
[1693524920801,0.07550772,216.35,215.45,0.1700654]
[1693524921005,0.07550772,216.35,215.46,0.1700654]
[1693524921203,0.07550772,216.35,215.47,0.1700654]
[1693524921507,0.07550772,216.34,215.48,0.1700654]
[1693524921707,0.07550772,216.34,215.49,0.1700654]
[1693524922009,0.07550772,216.34,215.5,0.1700654]
[1693524922207,0.07550772,216.35,215.51,0.1700654]
[1693524922408,0.07550772,216.35,215.52,0.1700654]
[1693524922708,0.07550772,216.34,215.53,0.1700654]
[1693524922903,0.07550772,216.34,215.54,0.1700654]
[1693524923104,0.07550772,216.34,215.55,0.1700654]
[1693524923308,0.07550772,216.34,215.56,0.1700654]
[1693524923510,0.07550772,216.34,215.57,0.1700654]
[1693524923705,0.07550772,216.34,215.58,0.1700654]
[1693524923909,0.07550772,216.34,215.59,0.1700654]
[1693524924106,0.07550772,216.34,215.6,0.1700654]
[1693524924305,0.07550772,216.34,215.61,0.1700654]
[1693524924510,1.0070294,216.41,215.62,0.1700654]
[1693524924511,0.07550772,216.33,215.62,0.1700654]
[1693524924710,0.07550772,216.33,215.63,0.1700654]
[1693524924911,0.07550772,216.33,215.41,5.0548601]
[1693524924912,0.07550772,216.33,215.64,0.1700654]
[1693524925112,0.07550772,216.33,215.65,0.1700654]
[1693524925313,0.07550772,216.33,215.66,0.1700654]
[1693524925509,0.07550772,216.33,215.42,0.1700654]
[1693524925712,0.07550772,216.33,215.43,0.1700654]
[1693524926614,0.07550772,216.32,215.43,0.1700654]
[1693524926818,0.07550772,216.32,215.43,5.2249255]
[1693524927114,0.07550772,216.32,215.44,0.1700654]
[1693524927516,0.07550772,216.31,215.44,5.2249255]
[1693524927711,0.07550772,216.31,215.45,0.1700654]
[1693524928615,0.07550772,216.29,215.45,5.2249255]
[1693524928811,0.07550772,216.29,215.46,0.1700654]
[1693524929522,0.07550772,216.27,215.47,5.0548601]
[1693524929720,0.07550772,216.27,215.48,0.1700654]
[1693524930323,0.07550772,216.28,215.48,0.1700654]
[1693524931420,0.07550772,216.28,215.48,5.2249255]
[1693524931614,0.07550772,216.28,215.49,0.1700654]
[1693524932319,0.07550772,216.28,215.5,0.1700654]
[1693524932620,0.07550772,216.28,215.51,0.1700654]
[1693524932820,0.07550772,216.28,215.52,0.1700654]
[1693524933022,0.07550772,216.28,215.53,0.1700654]
[1693524933222,0.07550772,216.28,215.54,0.1700654]
[1693524933523,0.07550772,216.28,215.55,0.1700654]
[1693524933822,0.07550772,216.28,215.56,0.1700654]
[1693524934018,0.07550772,216.28,215.49,0.1700654]
[1693524934323,0.07550772,216.28,215.5,0.1700654]
[1693524934525,0.07550772,216.28,215.51,0.1700654]
[1693524934723,0.07550772,216.28,215.52,0.1700654]
[1693524935023,0.07550772,216.28,215.53,0.1700654]
[1693524935217,0.07550772,216.28,215.49,0.1700654]
[1693524938623,0.07550772,216.29,215.49,0.1700654]
[1693524939428,0.07550772,216.29,215.49,5.2249255]
[1693524939728,0.07550772,216.29,215.5,0.1700654]
[1693524943530,0.07550772,216.29,215.5,5.2249255]
[1693524943730,0.07550772,216.29,215.51,0.1700654]
[1693524946630,0.07550772,216.3,215.51,0.1700654]
[1693524946834,0.07550772,216.29,215.51,0.1700654]
[1693524947430,0.07550772,216.3,215.51,0.1700654]
[1693524947627,0.07550772,216.3,215.51,5.2249255]
[1693524947831,0.07550772,216.3,215.52,0.1700654]
[1693524949228,0.07550772,216.3,215.52,5.2249255]
[1693524949428,0.07550772,216.3,215.53,0.1700654]
[1693524951932,0.07550772,216.29,215.53,5.2249255]
[1693524952134,0.07550772,216.29,215.54,0.1700654]
[1693524952437,0.07550772,216.3,215.54,0.1700654]
[1693524952935,0.07550772,216.31,215.54,0.1700654]
[1693524953337,0.07550772,216.31,215.54,5.2249255]
[1693524953537,0.07550772,216.31,215.55,0.1700654]
[1693524956138,0.07550772,216.31,215.56,0.1700654]
[1693524956440,0.07550772,216.31,215.57,0.1700654]
[1693524956643,0.07550772,216.31,215.58,0.1700654]
[1693524956842,0.07550772,216.31,215.59,0.1700654]
[1693524957143,0.07550772,216.31,215.6,0.1700654]
[1693524957343,0.07550772,216.31,215.54,0.1700654]
[1693524957643,0.07550772,216.31,215.55,0.1700654]
[1693524957843,0.07550772,216.31,215.54,0.1700654]
[1693524958042,0.07550772,216.31,215.55,0.1700654]
[1693524958242,0.07550772,216.32,215.55,0.1700654]
[1693524958443,0.07550772,216.31,215.55,0.1700654]
[1693524958639,0.07550772,216.31,215.54,0.1700654]
[1693524958843,0.07550772,216.32,215.55,0.1700654]
[1693524959042,0.07550772,216.32,215.56,0.1700654]
[1693524959240,0.07550772,216.32,215.57,0.1700654]
[1693524959436,0.07550772,216.32,215.58,0.1700654]
[1693524959744,0.07550772,216.32,215.59,0.1700654]
[1693524960038,0.07550772,216.32,215.6,0.1700654]
[1693524960243,0.07550772,216.32,215.54,0.1700654]
[1693524960443,0.07550772,216.32,215.55,0.1700654]
[1693524960641,0.07550772,216.32,215.54,0.1700654]
[1693524960839,0.07550772,216.32,215.55,0.1700654]
[1693524961040,0.07550772,216.32,215.56,0.1700654]
[1693524961241,0.07550772,216.32,215.57,0.1700654]
[1693524961444,0.07550772,216.32,215.54,0.1700654]
[1693524961739,0.07550772,216.32,215.55,0.1700654]
[1693524961944,0.07550772,216.32,215.54,0.1700654]
[1693524962146,0.07550772,216.32,215.55,0.1700654]
[1693524962337,0.07550772,216.32,215.54,0.1700654]
[1693524962538,0.07550772,216.32,215.55,0.1700654]
[1693524962741,0.07550772,216.32,215.56,0.1700654]
[1693524962943,0.07550772,216.32,215.57,0.1700654]
[1693524963243,0.07550772,216.32,215.58,0.1700654]
[1693524963444,0.07550772,216.32,215.54,0.1700654]
[1693524963643,0.07550772,216.32,215.55,0.1700654]
[1693524963943,0.07550772,216.32,215.53,5.0548601]
[1693524963944,0.07550772,216.32,215.56,0.1700654]
[1693524964140,0.07550772,216.32,215.54,0.1700654]
[1693524964341,0.07550772,216.32,215.55,0.1700654]
[1693524964541,0.07550772,216.32,215.53,5.0548601]
[1693524964542,0.07550772,216.32,215.54,0.1700654]
[1693524964741,0.07550772,216.32,215.55,0.1700654]
[1693524964940,0.07550772,216.32,215.56,0.1700654]
[1693524965138,0.07550772,216.32,215.57,0.1700654]
[1693524965339,0.07550772,216.32,215.58,0.1700654]
[1693524965545,0.07550772,216.32,215.54,0.1700654]
[1693524965744,0.07550772,216.32,215.55,0.1700654]
[1693524965944,0.07550772,216.32,215.56,0.1700654]
[1693524966141,0.07550772,216.32,215.57,0.1700654]
[1693524966345,0.07550772,216.32,215.54,0.1700654]
[1693524966645,0.07550772,216.32,215.55,0.1700654]
[1693524966845,0.07550772,216.32,215.56,0.1700654]
[1693524967044,0.07550772,216.32,215.54,0.1700654]
[1693524967347,0.07550772,216.32,215.55,0.1700654]
[1693524967546,0.07550772,216.32,215.56,0.1700654]
[1693524967747,0.07550772,216.32,215.57,0.1700654]
[1693524968047,0.07550772,216.32,215.58,0.1700654]
[1693524968247,0.07550772,216.32,215.54,0.1700654]
[1693524968447,0.07550772,216.32,215.55,0.1700654]
[1693524968745,0.07550772,216.32,215.56,0.1700654]
[1693524968946,0.07550772,216.32,215.57,0.1700654]
[1693524969147,0.07550772,216.32,215.54,0.1700654]
[1693524969345,0.07550772,216.32,215.55,0.1700654]
[1693524969547,0.07550772,216.32,215.56,0.1700654]
[1693524969842,0.07550772,216.32,215.57,0.1700654]
[1693524970146,0.07550772,216.32,215.58,0.1700654]
[1693524970346,0.07550772,216.32,215.59,0.1700654]
[1693524970648,0.07550772,216.32,215.6,0.1700654]
[1693524970947,0.07550772,216.32,215.61,0.1700654]
[1693524971146,0.07550772,216.32,215.62,0.1700654]
[1693524971345,0.07550772,216.32,215.63,0.1700654]
[1693524971545,0.07550772,216.32,215.64,0.1700654]
[1693524971847,0.07550772,216.32,215.65,0.1700654]
[1693524972048,0.07550772,216.32,215.66,0.1700654]
[1693524972248,0.07550772,216.32,215.67,0.1700654]
[1693524972547,0.07550772,216.32,215.68,0.1700654]
[1693524972748,0.07550772,216.32,215.54,0.1700654]
[1693524972950,0.07550772,216.32,215.53,5.0548601]
[1693524972951,0.07550772,216.32,215.55,0.1700654]
[1693524973248,0.07550772,216.32,215.56,0.1700654]
[1693524973447,0.07550772,216.32,215.54,0.1700654]
[1693524973648,0.07550772,216.32,215.55,0.1700654]
[1693524973948,0.07550772,216.32,215.56,0.1700654]
[1693524974147,0.07550772,216.32,215.57,0.1700654]
[1693524974341,0.07550772,216.32,215.58,0.1700654]
[1693524974542,0.07550772,216.32,215.54,0.1700654]
[1693524974742,0.07550772,216.32,215.53,5.0548601]
[1693524974743,0.07550772,216.32,215.55,0.1700654]
[1693524974947,0.07550772,216.32,215.56,0.1700654]
[1693524975145,0.07550772,216.32,215.57,0.1700654]
[1693524975347,0.07550772,216.32,215.54,0.1700654]
[1693524975647,0.07550772,216.32,215.55,0.1700654]
[1693524975847,0.07550772,216.32,215.54,0.1700654]
[1693524976048,0.07550772,216.32,215.55,0.1700654]
[1693524976343,0.07550772,216.32,215.56,0.1700654]
[1693524976550,0.07550772,216.32,215.57,0.1700654]
[1693524976749,0.07550772,216.32,215.58,0.1700654]
[1693524976952,0.07550772,216.32,215.59,0.1700654]
[1693524977145,0.07550772,216.32,215.54,0.1700654]
[1693524977349,0.07550772,216.32,215.55,0.1700654]
[1693524977550,0.07550772,216.32,215.54,0.1700654]
[1693524977851,0.07550772,216.32,215.55,0.1700654]
[1693524978050,0.07550772,216.32,215.54,0.1700654]
[1693524978252,0.07550772,216.32,215.55,0.1700654]
[1693524978456,0.07550772,216.32,215.54,0.1700654]
[1693524978650,0.07550772,216.32,215.55,0.1700654]
[1693524978849,0.07550772,216.32,215.56,0.1700654]
[1693524979050,0.07550772,216.32,215.57,0.1700654]
[1693524979251,0.07550772,216.32,215.58,0.1700654]
[1693524979454,0.07550772,216.32,215.54,0.1700654]
[1693524979653,0.07550772,216.32,215.55,0.1700654]
[1693524979853,0.07550772,216.32,215.54,0.1700654]
[1693524980148,0.07550772,216.32,215.55,0.1700654]
[1693524980353,0.07550772,216.32,215.54,0.1700654]
[1693524980549,0.07550772,216.32,215.55,0.1700654]
[1693524980754,0.07550772,216.32,215.53,5.0548601]
[1693524980755,0.07550772,216.32,215.56,0.1700654]
[1693524980955,0.07550772,216.32,215.57,0.1700654]
[1693524981156,0.07550772,216.32,215.58,0.1700654]
[1693524981455,0.07550772,216.32,215.59,0.1700654]
[1693524981648,0.07550772,216.32,215.55,0.1700654]
[1693524981853,0.07550772,216.32,215.56,0.1700654]
[1693524982053,0.07550772,216.32,215.55,0.1700654]
[1693524982253,0.07550772,216.32,215.56,0.1700654]
[1693524982450,0.07550772,216.32,215.57,0.1700654]
[1693524982750,0.07550772,216.32,215.58,0.1700654]
[1693524982952,0.07550772,216.32,215.55,0.1700654]
[1693524983155,0.07550772,216.32,215.56,0.1700654]
[1693524983350,0.07550772,216.32,215.55,0.1700654]
[1693524983553,0.07550772,216.32,215.56,0.1700654]
[1693524983750,0.07550772,216.32,215.55,0.1700654]
[1693524983948,0.07550772,216.32,215.56,0.1700654]
[1693524984156,0.07550772,216.32,215.57,0.1700654]
[1693524984457,0.07550772,216.32,215.58,0.1700654]
[1693524984755,0.07550772,216.32,215.59,0.1700654]
[1693524984950,0.07550772,216.32,215.55,0.1700654]
[1693524985155,0.07550772,216.32,215.56,0.1700654]
[1693524985455,0.07550772,216.32,215.57,0.1700654]
[1693524985656,0.07550772,216.31,215.58,0.1700654]
[1693524985857,0.07550772,216.31,215.59,0.1700654]
[1693524986053,0.07550772,216.31,215.54,5.0548601]
[1693524986054,0.07550772,216.31,215.6,0.1700654]
[1693524986356,0.07550772,216.31,215.61,0.1700654]
[1693524986558,0.07550772,216.31,215.62,0.1700654]
[1693524986852,0.07550772,216.31,215.63,0.1700654]
[1693524987054,0.07550772,216.31,215.64,0.1700654]
[1693524987255,0.07550772,216.31,215.65,0.1700654]
[1693524987453,0.07550772,216.31,215.66,0.1700654]
[1693524987652,0.07550772,216.31,215.67,0.1700654]
[1693524987852,0.07550772,216.31,215.68,0.1700654]
[1693524988061,0.07550772,216.31,215.69,0.1700654]
[1693524988358,0.07550772,216.31,215.7,0.1700654]
[1693524988559,0.07550772,216.31,215.56,0.1700654]
[1693524988860,0.07550772,216.31,215.57,0.1700654]
[1693524989055,0.07550772,216.31,215.56,0.1700654]
[1693524989253,0.07550772,216.31,215.57,0.1700654]
[1693524989559,0.07550772,216.32,215.58,0.1700654]
[1693524989758,0.07550772,216.32,215.55,0.1700654]
[1693524989956,0.50351472,216.37,215.54,5.0548601]
[1693524989957,0.07550772,216.33,215.56,0.1700654]
[1693524990157,0.07550772,216.33,215.55,0.1700654]
[1693524990354,0.07550772,216.33,215.56,0.1700654]
[1693524993053,0.07550772,216.34,215.56,0.1700654]
[1693524995463,0.07550772,216.35,215.56,0.1700654]
[1693524995659,0.07550772,216.39,215.56,0.1700654]
[1693524995964,0.07550772,216.42,215.56,0.1700654]
[1693524996666,0.07550772,216.42,215.59,5.0548601]
[1693524996858,0.07550772,216.43,215.6,0.1700654]
[1693524997660,0.15105441,216.45,215.6,0.1700654]
[1693524997661,0.07550772,216.44,215.6,0.1700654]
[1693524998167,0.07550772,216.44,215.61,0.1700654]
[1693524998362,0.07550772,216.44,215.58,0.1700654]
[1693524998567,0.07550772,216.44,215.59,0.1700654]
[1693524998767,0.07550772,216.45,215.58,0.1700654]
[1693524999068,0.07550772,216.45,215.59,0.1700654]
[1693524999263,0.07550772,216.45,215.57,0.1700654]
[1693524999465,0.07550772,216.45,215.58,0.1700654]
[1693524999662,0.07550772,216.45,215.57,0.1700654]
[1693525000063,0.07550772,216.46,215.57,0.1700654]
[1693525000467,0.07550772,216.45,215.57,0.1700654]
[1693525000663,0.07550772,216.46,215.57,0.1700654]
[1693525001562,0.15105441,216.49,215.57,0.1700654]
[1693525001563,0.07550772,216.47,215.57,0.1700654]
[1693525001967,0.07550772,216.47,215.55,0.1700654]
[1693525002168,0.07550772,216.47,215.58,0.1700654]
[1693525002367,0.07550772,216.47,215.59,0.1700654]
[1693525002564,0.07550772,216.47,215.55,0.1700654]
[1693525002770,0.07550772,216.47,215.56,0.1700654]
[1693525002963,0.07550772,216.47,215.55,0.1700654]
[1693525003163,0.07550772,216.47,215.56,0.1700654]
[1693525003370,0.07550772,216.47,215.55,0.1700654]
[1693525003669,0.07550772,216.47,215.56,0.1700654]
[1693525003870,0.07550772,216.47,215.55,0.1700654]
[1693525004070,0.07550772,216.47,215.56,0.1700654]
[1693525004269,0.07550772,216.47,215.54,0.1700654]
[1693525004470,0.07550772,216.47,215.55,0.1700654]
[1693525004671,0.07550772,216.47,215.54,0.1700654]
[1693525004867,0.07550772,216.47,215.55,0.1700654]
[1693525005069,0.07550772,216.47,215.53,0.1700654]
[1693525005368,0.07550772,216.47,215.54,0.1700654]
[1693525005569,0.07550772,216.46,215.53,0.1700654]
[1693525005766,0.07550772,216.46,215.54,0.1700654]
[1693525005967,0.07550772,216.46,215.52,0.1700654]
[1693525006169,0.07550772,216.46,215.53,0.1700654]